bitfinex/quotes_ETHUSD_20220220
["timestamp","ask_amount","ask_price","bid_price","bid_amount"]
[1645348325034,0.454,2633.2,2632.7,1.72348158]
[1645348325322,1.1363,2633.2,2632.7,1.72348158]
[1645348325521,8.33844,2633.2,2632.7,1.72348158]
[1645348325718,8.33844,2633.2,2632.7,1.35098158]
[1645348325719,5.3823,2632.9,2632.7,1.35098158]
[1645348325921,0.454,2632.8,2632.7,1.35098158]
[1645348326325,1.9021,2633.5,2632.7,1.35098158]
[1645348326326,1.0,2633.7,2632.7,1.35098158]
[1645348326523,0.454,2633.7,2632.7,1.35098158]
[1645348326727,2.53189996,2634.2,2632.7,1.35098158]
[1645348326922,0.13819996,2634.2,2632.7,1.35098158]
[1645348327120,0.13819996,2634.2,2632.7,1.54068158]
[1645348327323,2.4007,2634.8,2634.0,1.14781989]
[1645348327625,0.5,2635.7,2634.0,1.44781989]
[1645348327626,0.454,2635.4,2634.0,1.44781989]
[1645348327821,0.5,2635.7,2634.0,1.44781989]
[1645348327822,15.4338,2636.1,2634.1,3.6897]
[1645348328024,0.19845549,2635.4,2634.1,3.6897]
[1645348328222,7.32,2636.1,2634.3,11.97]
[1645348328422,0.93873499,2636.0,2635.3,1.17900682]
[1645348328622,0.93873499,2636.0,2634.4,3.5]
[1645348328623,0.0270502,2636.5,2634.4,3.8]
[1645348328927,0.0270502,2636.5,2634.5,1.0]
[1645348329148,0.4810502,2636.5,2634.7,16.67]
[1645348329341,0.0270502,2636.5,2634.8,17.78446834]
[1645348329538,0.0270502,2636.5,2634.8,5.69728]
[1645348329751,0.86231119,2636.2,2635.4,0.86868661]
[1645348329939,0.0270502,2636.5,2635.4,0.86868661]
[1645348330138,0.00252719,2635.8,2635.4,0.86868661]
[1645348331048,0.0270502,2636.5,2635.4,1.16868661]
[1645348331246,0.0270502,2636.5,2635.4,1.46868661]
[1645348331642,0.0270502,2636.5,2635.4,2.46868661]
[1645348332043,0.0270502,2636.5,2636.3,1.02100577]
[1645348332245,0.0270502,2636.5,2635.4,0.3]
[1645348332645,0.0270502,2636.5,2635.1,1.0]
[1645348332892,0.0270502,2636.5,2634.8,1.0]
[1645348333289,1.02502353,2636.0,2635.2,0.93347675]
[1645348333490,0.0270502,2636.5,2635.2,0.93347675]
[1645348333695,0.0270502,2636.5,2634.6,0.56955]
[1645348333890,5.8633502,2636.5,2634.5,0.1897]
[1645348334105,3.8823,2636.4,2634.5,0.1897]
[1645348334296,0.012172,2636.0,2634.3,0.1897]
[1645348334491,0.012172,2636.0,2634.0,0.1897]
[1645348334492,0.6437,2635.9,2634.0,0.1897]
[1645348334700,0.84056148,2635.2,2634.1,1.61466062]
[1645348334889,0.84056148,2635.2,2634.0,0.1897]
[1645348334890,0.1897,2635.7,2634.0,0.1897]
[1645348335292,0.1897,2635.7,2633.9,0.95066662]
[1645348335293,0.00259137,2635.3,2633.9,0.95066662]
[1645348335693,0.6437,2635.2,2633.9,0.00083882]
[1645348335891,0.89038691,2634.4,2633.7,0.93752719]
[1645348336091,0.3823,2635.0,2633.7,0.93752719]
[1645348336293,0.00259142,2634.7,2633.9,0.00083882]
[1645348337145,1.03571432,2634.6,2633.7,0.93752719]
[1645348337547,0.00259145,2634.4,2633.9,0.00083882]
[1645348338452,0.00259142,2634.3,2633.9,0.00083882]
[1645348339050,0.00259142,2634.3,2633.9,0.85162707]
[1645348339449,1.03571432,2634.6,2633.9,0.85078825]
[1645348339650,1.03571432,2634.6,2634.0,1.135]
[1645348339952,0.00228387,2634.3,2634.0,1.135]
[1645348340151,0.00228387,2634.3,2634.1,1.135]
[1645348340585,3.6897,2635.0,2634.1,1.135]
[1645348340783,0.1897,2635.0,2634.1,1.135]
[1645348341187,1.06734489,2634.2,2634.1,1.135]
[1645348341685,0.1897,2634.6,2634.1,1.135]
[1645348342184,3.5,2635.2,2634.1,1.135]
[1645348342185,0.1897,2635.1,2634.1,1.135]
[1645348342383,0.454,2635.0,2634.1,1.135]
[1645348342590,1.355845,2635.7,2634.1,1.135]
[1645348342591,0.1897,2635.3,2634.1,1.135]
[1645348342791,0.1897,2635.6,2635.0,1.135]
[1645348342990,0.1897,2635.8,2635.0,1.135]
[1645348343187,1.89958,2636.6,2635.0,1.135]
[1645348343188,0.0897,2636.2,2635.0,1.135]
[1645348343388,0.01015496,2635.2,2635.0,1.135]
[1645348344333,1.03837624,2635.9,2635.0,1.135]
[1645348344536,0.00256757,2635.2,2635.0,1.135]
[1645348345431,3.5,2636.3,2635.0,1.135]
[1645348345733,0.00256757,2635.2,2635.0,1.135]
[1645348346031,0.00256757,2635.2,2635.1,1.135]
[1645348346634,0.454,2635.3,2635.1,1.135]
[1645348347037,0.45656756,2635.3,2635.1,1.135]
[1645348347889,0.454,2635.3,2635.1,1.135]
[1645348348088,0.45654576,2635.3,2635.1,1.135]
[1645348349089,0.454,2635.3,2635.1,1.135]
[1645348349491,0.45654576,2635.3,2635.1,1.135]
[1645348350285,0.454,2635.3,2635.1,1.135]
[1645348350689,0.88278359,2635.2,2635.1,1.135]
[1645348351087,1.33678359,2635.2,2635.1,1.135]
[1645348351289,1.42734359,2635.2,2635.1,1.135]
[1645348351533,1.33678359,2635.2,2635.1,1.135]
[1645348351734,36.5,2635.1,2633.6,1.08070354]
[1645348351939,1.01675602,2633.8,2633.6,1.08070354]
[1645348352838,1.47075602,2633.8,2633.6,1.08070354]
[1645348353038,20.0,2633.7,2632.7,1.35098158]
[1645348353237,0.454,2633.6,2632.7,1.35098158]
[1645348353634,1.11598371,2633.1,2632.7,1.35098158]
[1645348354038,3.5,2633.0,2632.7,1.35098158]
[1645348354235,0.454,2632.9,2632.7,1.35098158]
[1645348354839,1.11598371,2633.1,2632.7,1.35098158]
[1645348355037,0.454,2632.9,2632.7,1.35098158]
[1645348356094,0.454,2632.9,2631.6,0.03205999]
[1645348356295,0.95122,2632.6,2632.0,2.17346091]
[1645348356492,0.454,2632.5,2632.0,2.17346091]
[1645348357291,0.92136769,2632.7,2632.0,3.26026308]
[1645348357498,0.454,2633.5,2632.0,3.56026308]
[1645348357695,0.454,2633.5,2632.1,2.61553812]
[1645348357891,0.454,2633.5,2632.2,1.6153644]
[1645348358095,0.454,2633.5,2632.1,1.1899]
[1645348358096,0.454,2633.5,2632.1,1.3]
[1645348358492,1.08871593,2632.5,2632.0,2.17346091]
[1645348359835,1.08434886,2632.1,2632.0,2.17346091]
[1645348362037,1.08434886,2632.1,2632.0,1.93179891]
[1645348363187,1.08434886,2632.1,2631.6,0.03205999]
[1645348363388,11.454,2632.0,2631.6,0.03205999]
[1645348363588,12.40531,2632.0,2631.6,0.03205999]
[1645348365391,12.40531,2632.0,2631.7,0.18346653]
[1645348365794,12.40531,2632.0,2630.4,7.32]
[1645348365795,38.5,2631.7,2630.4,7.32]
[1645348365994,38.5,2631.7,2629.9,0.19]
[1645348365995,0.95161,2631.3,2629.9,0.19]
[1645348366296,1.40561,2631.3,2630.0,1.61670938]
[1645348366535,1.40561,2631.3,2630.1,1.61670938]
[1645348366731,1.40561,2631.3,2630.2,1.61670938]
[1645348366932,1.08830266,2630.8,2630.3,1.1863035]
[1645348367131,0.85338084,2631.2,2631.1,0.63612498]
[1645348367534,0.95149,2631.5,2631.1,0.63612498]
[1645348367737,0.454,2631.6,2631.1,0.63612498]
[1645348367937,0.454,2631.9,2631.1,0.63612498]
[1645348368136,0.53554,2632.3,2631.1,0.63612498]
[1645348368532,0.83554,2632.3,2631.1,0.63612498]
[1645348368733,0.98302689,2631.8,2631.2,0.9395308]
[1645348369235,0.98302689,2631.8,2631.1,0.63612498]
[1645348370591,0.13819996,2632.3,2631.1,0.63612498]
[1645348370795,0.08935,2632.9,2631.2,2.18823316]
[1645348371087,0.08935,2632.9,2631.3,1.61603316]
[1645348371286,0.08935,2632.9,2631.4,0.1899]
[1645348371488,1.00915675,2632.5,2631.9,1.00208779]
[1645348371687,1.00915675,2632.5,2631.4,0.3]
[1645348371886,1.00915675,2632.5,2631.2,0.6]
[1645348372086,1.00915675,2632.5,2631.3,1.0]
[1645348372287,1.00915675,2632.5,2631.1,1.23612498]
[1645348372489,1.00915675,2632.5,2631.2,1.61593043]
[1645348372688,1.00915675,2632.5,2631.6,1.12610901]
[1645348374639,1.00915675,2632.5,2632.0,1.18979432]
[1645348374934,1.00915675,2632.5,2631.2,0.1899]
[1645348375334,1.00915675,2632.5,2631.3,1.61597485]
[1645348376034,0.09039,2632.8,2632.0,1.07962484]
[1645348376434,0.09039,2632.8,2631.5,1.0]
[1645348376435,2.13146996,2633.3,2631.5,0.1899]
[1645348376634,2.13146996,2633.3,2631.5,1.0]
[1645348376635,7.13146996,2633.3,2631.5,1.0]
[1645348376936,0.454,2633.2,2631.4,1.1899]
[1645348377134,1.4050521,2633.2,2631.4,1.0]
[1645348377535,0.19862898,2633.1,2631.4,1.0]
[1645348377791,1.06112642,2632.5,2631.9,1.0368539]
[1645348378588,0.95093,2633.0,2631.9,1.0368539]
[1645348379787,0.88716407,2632.5,2631.9,1.0368539]
[1645348379986,0.88716407,2632.5,2631.5,1.0]
[1645348380194,0.454,2632.4,2631.2,0.1899]
[1645348380390,0.454,2632.4,2630.7,5.13196711]
[1645348380391,0.454,2632.4,2630.9,7.32]
[1645348380587,0.54338,2632.4,2630.9,7.32]
[1645348381184,0.93909681,2631.8,2631.2,1.17291948]
[1645348381632,0.454,2632.1,2631.2,1.17291948]
[1645348382031,0.454,2632.1,2630.9,7.32]
[1645348383042,0.454,2632.1,2630.2,1.0]
[1645348383043,0.95162,2631.1,2629.5,0.1863939]
[1645348383237,0.95162,2631.1,2628.8,3.20805661]
[1645348383238,5.0125169,2629.9,2628.8,3.20805661]
[1645348383440,3.954,2629.8,2628.3,0.71345427]
[1645348383637,3.954,2629.8,2627.5,0.71345427]
[1645348383638,9.73068,2629.2,2627.5,0.71345427]
[1645348383835,0.454,2629.1,2627.6,1.61796099]
[1645348384040,3.5,2629.0,2628.3,0.9344777]
[1645348384237,0.454,2628.9,2628.3,0.9344777]
[1645348384434,10.18273353,2628.9,2628.3,0.9344777]
[1645348384636,9.72873353,2628.8,2628.3,0.9344777]
[1645348384837,0.454,2629.3,2628.4,12.0]
[1645348385301,2.8064,2630.7,2628.5,11.67]
[1645348385302,0.454,2629.7,2628.5,11.67]
[1645348385492,0.454,2629.7,2629.6,0.00230777]
[1645348385691,0.454,2630.3,2629.6,0.00230777]
[1645348386117,0.454,2630.3,2630.1,0.98426916]
[1645348386290,0.454,2630.3,2629.6,0.00230777]
[1645348387089,3.5,2630.5,2630.4,0.908]
[1645348387291,0.454,2630.5,2630.4,0.908]
[1645348387690,3.954,2630.5,2629.6,0.00230777]
[1645348387891,3.5,2630.4,2629.6,0.00230777]
[1645348388091,0.454,2630.3,2629.6,0.00230777]
[1645348388494,3.5,2630.2,2629.6,0.00230777]
[1645348388695,0.454,2630.3,2629.6,0.00230777]
[1645348388891,0.454,2630.2,2629.6,0.00230777]
[1645348389134,2.85622,2630.1,2629.6,0.00230777]
[1645348389340,3.954,2630.0,2629.6,0.00230777]
[1645348389534,0.19,2629.9,2628.2,6.2291]
[1645348389735,0.454,2629.8,2628.2,6.2291]
[1645348389936,3.69,2629.7,2628.3,1.61784232]
[1645348390135,0.95225,2629.5,2628.3,1.61784232]
[1645348390335,0.95225,2629.5,2628.4,2.79925718]
[1645348390336,0.454,2629.4,2628.4,2.79925718]
[1645348390533,0.454,2629.4,2628.5,1.61784232]
[1645348390735,3.5,2629.3,2628.4,1.18141486]
[1645348390936,0.95232,2629.2,2628.5,1.6178945]
[1645348391133,0.95232,2629.2,2628.4,1.18141486]
[1645348391134,0.95232,2629.2,2627.8,6.2081]
[1645348391354,0.95232,2629.2,2627.9,1.61802464]
[1645348391355,0.95232,2629.0,2627.9,1.61802464]
[1645348391537,3.5,2628.9,2628.0,1.61802464]
[1645348391835,3.5,2628.9,2627.6,2.9102]
[1645348391836,0.454,2628.8,2628.1,1.61802464]
[1645348392034,0.454,2628.8,2627.6,2.9102]
[1645348392237,3.5,2628.7,2627.4,0.71345427]
[1645348392440,0.9525,2628.5,2627.5,1.6181014]
[1645348392635,0.454,2628.4,2627.6,1.6181014]
[1645348392900,0.454,2628.4,2627.7,1.6181014]
[1645348393095,0.454,2628.4,2627.8,1.6181014]
[1645348393298,0.1902,2628.8,2628.4,0.908]
[1645348393494,0.454,2629.1,2628.4,0.908]
[1645348393900,0.95222,2629.4,2628.5,1.61785712]
[1645348394102,0.454,2629.7,2629.4,0.90947303]
[1645348394300,3.5,2630.1,2629.4,0.90947303]
[1645348394301,0.454,2630.1,2629.4,0.90947303]
[1645348394697,0.454,2630.7,2629.4,1.20947303]
[1645348394897,0.19,2630.6,2629.5,1.61735791]
[1645348395294,0.19,2630.6,2630.1,1.18384786]
[1645348395496,0.95168,2630.9,2629.4,0.6118]
[1645348395695,0.95168,2630.9,2629.5,1.61721446]
[1645348396400,1.10845496,2630.7,2629.6,1.04458649]
[1645348396656,0.95168,2630.9,2629.7,1.61721446]
[1645348397258,0.454,2630.8,2629.7,1.61721446]
[1645348397458,1.90367,2630.6,2629.4,0.3118]
[1645348397660,0.454,2630.5,2629.5,1.61743253]
[1645348398056,0.19,2630.4,2629.4,0.3118]
[1645348398255,0.19,2630.4,2629.5,1.61747325]
[1645348398256,0.454,2630.4,2629.5,1.61747325]
[1645348398455,0.45197413,2630.4,2629.5,1.61747325]
[1645348398657,1.40380413,2630.4,2629.5,2.70554519]
[1645348398961,1.40380413,2630.4,2629.4,0.3118]
[1645348399159,1.40380413,2630.4,2629.5,1.6174904]
[1645348399360,0.45197413,2630.4,2629.5,1.6174904]
[1645348399760,0.7858,2631.0,2629.5,1.6174904]
[1645348399761,0.454,2630.8,2629.5,1.6174904]
[1645348400593,0.454,2630.8,2630.4,1.0344553]
[1645348400800,0.7858,2631.0,2630.4,1.0344553]
[1645348401196,0.7858,2631.0,2630.5,5.1169173]
[1645348401395,0.7858,2631.0,2630.6,2.6169173]
[1645348401600,0.7858,2631.0,2630.7,1.6169173]
[1645348401797,0.7858,2631.0,2630.8,1.14426276]
[1645348402396,0.7858,2631.0,2630.5,0.8808]
[1645348403399,0.454,2630.9,2630.5,0.8808]
[1645348403597,0.454,2630.8,2630.5,0.8808]
[1645348404235,1.40568,2630.8,2630.5,0.8308]
[1645348405437,2.86915826,2630.8,2630.5,0.8308]
[1645348405635,2.09359,2630.7,2630.5,0.8308]
[1645348405835,0.454,2630.6,2630.5,0.8308]
[1645348406034,0.944,2630.6,2630.5,0.8308]
[1645348406235,15.0,2630.5,2629.4,0.3118]
[1645348406439,2.00138291,2630.3,2629.4,0.3118]
[1645348406636,0.454,2630.2,2629.3,1.11050247]
[1645348407047,1.19,2630.4,2630.3,0.31940806]
[1645348407237,1.49,2630.4,2630.3,0.31940806]
[1645348407436,0.49,2630.4,2630.3,0.31940806]
[1645348407638,1.40560826,2630.4,2630.3,0.31940806]
[1645348407892,3.30945826,2630.4,2630.3,0.31940806]
[1645348408388,3.30945826,2630.4,2628.8,2.733]
[1645348408389,19.5,2630.3,2628.8,2.733]
[1645348408592,0.95201,2629.9,2628.9,1.61758773]
[1645348408998,0.95201,2629.9,2629.0,2.72857549]
[1645348409196,0.95201,2629.9,2628.4,0.908]
[1645348409197,0.454,2629.8,2628.4,0.908]
[1645348409407,1.90439,2629.6,2628.5,1.61778963]
[1645348409591,0.9522,2629.4,2628.5,1.61778963]
[1645348409798,1.4062,2629.4,2628.5,1.61778963]
[1645348409991,1.4062,2629.4,2628.4,0.908]
[1645348410191,1.4062,2629.4,2629.2,0.5]
[1645348410390,1.4062,2629.4,2628.4,1.93964898]
[1645348410391,1.4062,2629.4,2628.4,0.908]
[1645348410798,1.90478,2629.1,2628.4,0.908]
[1645348410991,2.35878,2629.1,2628.4,0.908]
[1645348411394,2.65878,2629.1,2628.4,0.908]
[1645348411832,1.0,2629.0,2628.4,0.908]
[1645348412037,0.454,2628.9,2628.5,1.04651023]
[1645348412243,0.95232,2629.3,2628.5,1.04651023]
[1645348412437,3.31116,2629.7,2628.5,1.04651023]
[1645348412638,1.0,2629.9,2628.6,5.11759488]
[1645348412833,0.454,2630.0,2628.6,0.6]
[1645348413131,0.454,2630.0,2629.2,0.95851574]
[1645348413931,0.95196,2629.9,2629.2,0.95851574]
[1645348414131,0.95196,2629.9,2628.6,3.2614]
[1645348414335,0.95196,2629.9,2628.6,0.3]
[1645348414537,0.95196,2629.9,2628.7,1.61754138]
[1645348414734,0.95196,2629.9,2628.5,3.5]
[1645348414936,2.09393,2630.2,2628.5,3.5]
[1645348414937,0.19,2630.2,2628.7,11.67]
[1645348415133,0.19,2630.7,2629.0,11.67]
[1645348415393,0.19,2630.7,2629.1,1.80752834]
[1645348415394,1.0,2630.7,2629.1,1.80752834]
[1645348415592,0.754,2631.0,2629.2,1.61752834]
[1645348415997,0.454,2631.0,2629.8,0.8588856]
[1645348416198,0.19,2630.9,2629.8,0.8588856]
[1645348416404,0.95169,2630.8,2629.8,0.8588856]
[1645348416594,0.19,2630.7,2629.8,0.8588856]
[1645348417396,0.95169,2630.8,2629.8,0.7349306]
[1645348417598,1.27984996,2631.1,2629.8,1.0349306]
[1645348417599,0.13819996,2631.1,2629.8,1.0349306]
[1645348417796,0.13819996,2631.1,2629.8,1.3349306]
[1645348418001,0.13819996,2631.1,2629.8,2.6493306]
[1645348418595,0.13819996,2631.1,2630.5,0.94679204]
[1645348419242,0.13819996,2631.1,2629.8,1.9144]
[1645348419443,0.13819996,2631.1,2629.8,0.6]
[1645348419643,0.95163,2630.9,2629.8,0.3]
[1645348419846,0.95163,2630.9,2629.6,3.99]
[1645348420044,0.95163,2630.9,2629.7,1.61709784]
[1645348420244,0.95163,2630.9,2629.7,1.91709784]
[1645348420444,0.95163,2630.9,2630.0,0.93582909]
[1645348422987,1.90358,2630.7,2629.2,2.9307]
[1645348423286,1.90358,2630.7,2629.3,1.6173041]
[1645348423287,3.09358,2630.7,2629.3,1.6173041]
[1645348423688,3.39358,2630.7,2629.3,1.6173041]
[1645348423889,3.09358,2630.7,2629.3,1.6173041]
[1645348424589,4.23898956,2630.7,2629.7,1.08292286]
[1645348425091,4.23898956,2630.7,2629.8,1.61732243]
[1645348425092,0.95177,2630.5,2629.8,1.61732243]
[1645348425285,0.95177,2630.5,2629.2,2.9307]
[1645348425488,0.95177,2630.5,2629.3,1.61734826]
[1645348425686,1.14177,2630.5,2629.4,1.61734826]
[1645348425986,1.14177,2630.5,2629.0,0.71345427]
[1645348425987,1.14177,2630.5,2629.6,1.11426166]
[1645348426186,1.14177,2630.5,2629.7,1.61734826]
[1645348426636,0.19,2630.5,2629.7,1.61734826]
[1645348426939,0.19,2630.5,2629.7,1.91734826]
[1645348427135,0.95164,2630.9,2629.8,1.61734826]
[1645348427741,0.95164,2630.9,2630.1,1.05135151]
[1645348429138,1.25164,2630.9,2630.1,1.05135151]
[1645348430140,1.25164,2630.9,2630.2,1.61718875]
[1645348430390,1.90351,2630.8,2630.2,1.61718875]
[1645348430689,3.58581,2630.8,2629.4,0.71345427]
[1645348430885,0.644,2630.7,2629.4,0.71345427]
[1645348431085,0.944,2630.7,2629.4,0.71345427]
[1645348431285,0.08611616,2630.6,2629.2,0.71345427]
[1645348431484,0.644,2630.5,2629.3,1.56811678]
[1645348431685,1.01090959,2630.4,2629.4,1.08015082]
[1645348431886,0.95202,2630.1,2629.4,1.08015082]
[1645348432084,1.40602,2630.1,2629.4,1.08015082]
[1645348432285,1.9041,2630.0,2628.7,13.20023626]
[1645348432485,0.454,2629.9,2628.7,9.11943626]
[1645348432686,0.454,2629.9,2628.7,5.9804]
[1645348432883,0.454,2629.9,2628.7,6.5804]
[1645348433088,0.454,2629.9,2628.7,0.3]
[1645348433283,0.454,2629.9,2629.3,1.1124076]
[1645348433685,1.40601,2629.9,2629.3,1.1124076]
[1645348433885,2.40601,2629.9,2629.3,1.1124076]
[1645348435745,2.40601,2629.9,2629.7,1.01411654]
[1645348436044,2.40601,2629.9,2628.6,3.8]
[1645348436242,2.40601,2629.9,2628.4,4.23703626]
[1645348436243,2.40601,2629.9,2628.4,7.62358199]
[1645348436842,2.40601,2629.9,2628.4,7.57358199]
[1645348437041,2.40601,2629.9,2629.4,1.14269533]
[1645348437440,1.40601,2629.9,2629.4,1.14269533]
[1645348438488,1.40601,2629.9,2628.4,19.05358199]
[1645348438690,1.40601,2629.9,2628.4,15.55358199]
[1645348438888,1.40601,2629.9,2628.6,11.67]
[1645348439292,1.40601,2629.9,2628.6,11.97]
[1645348439690,1.40601,2629.9,2629.3,0.99365126]
[1645348439890,0.95201,2629.9,2629.3,0.99365126]
[1645348440091,1.25201,2629.9,2628.7,0.3]
[1645348440290,1.25201,2629.9,2628.5,0.3]
[1645348441091,1.25201,2629.9,2629.3,1.17612706]
[1645348445600,1.25201,2629.9,2628.5,0.3]
[1645348445790,4.75201,2629.9,2628.5,0.3]
[1645348445997,4.75201,2629.9,2628.4,12.828]
[1645348445998,1.0,2629.8,2628.4,0.908]
[1645348446196,0.95216,2629.5,2628.4,0.908]
[1645348446392,4.144,2629.4,2628.4,0.908]
[1645348446591,4.144,2629.4,2628.7,0.88132168]
[1645348446792,1.0,2629.3,2628.7,0.88132168]
[1645348446997,0.454,2629.2,2628.7,0.88132168]
[1645348447191,0.95236,2629.1,2628.7,0.88132168]
[1645348447391,1.40636,2629.1,2628.7,0.88132168]
[1645348448295,1.40636,2629.1,2628.4,0.908]
[1645348449048,1.89656,2629.1,2628.4,0.908]
[1645348449246,5.39656,2629.1,2628.4,0.908]
[1645348449557,2.8576382,2629.0,2628.4,0.908]
[1645348449745,0.6442,2628.9,2628.4,0.908]
[1645348450150,0.9442,2628.9,2628.4,0.908]
[1645348450348,0.95275,2628.0,2627.3,0.98362046]
[1645348450545,0.454,2627.9,2627.3,0.98362046]
[1645348451352,0.754,2627.9,2627.3,0.98362046]
[1645348451750,4.254,2627.9,2626.6,0.1902]
[1645348451948,0.95286,2627.6,2626.7,1.61866846]
[1645348452145,0.454,2627.5,2626.5,2.7929]
[1645348452345,0.754,2627.5,2626.6,1.61871722]
[1645348452546,0.754,2627.5,2626.7,1.61871722]
[1645348452796,0.754,2627.5,2627.0,0.91843778]
[1645348452994,0.754,2627.5,2626.0,11.68815695]
[1645348453201,0.754,2627.5,2626.1,1.61872473]
[1645348453596,6.15996,2627.5,2626.1,1.61872473]
[1645348453800,1.0,2627.4,2626.1,1.61872473]
[1645348454002,3.954,2627.3,2626.1,1.61872473]
[1645348454209,0.95303,2627.1,2626.1,1.91872473]
[1645348454404,0.454,2627.0,2626.2,1.61872473]
[1645348454703,0.454,2627.0,2625.8,0.1902]
[1645348454704,3.5,2626.9,2625.8,0.1902]
[1645348454904,1.0,2626.8,2625.9,1.61887912]
[1645348455200,1.0,2626.8,2626.3,0.96860455]
[1645348455402,0.454,2626.9,2626.3,0.96860455]
[1645348455605,0.454,2626.9,2626.7,1.05469488]
[1645348455801,0.1902,2627.2,2626.7,1.05469488]
[1645348456008,0.3,2627.4,2626.7,1.05469488]
[1645348456200,0.98923005,2627.5,2626.7,1.05469488]
[1645348456645,0.95297,2627.3,2626.7,1.05469488]
[1645348456846,1.25297,2627.3,2626.7,1.05469488]
[1645348457347,1.25297,2627.3,2625.9,3.5]
[1645348457348,1.25297,2627.3,2626.0,0.3]
[1645348457545,0.3,2627.3,2626.1,1.61889567]
[1645348457746,1.59732,2627.2,2625.9,1.61889567]
[1645348457945,1.89732,2627.2,2626.2,1.61889567]
[1645348458147,1.89732,2627.2,2625.8,0.1902]
[1645348458350,0.95322,2627.0,2626.0,1.07129707]
[1645348458546,0.6442,2626.9,2626.0,1.07129707]
[1645348458960,0.6442,2626.9,2626.1,1.61900428]
[1645348459146,1.0,2627.0,2626.9,1.27290197]
[1645348459346,0.1902,2627.4,2626.9,1.27290197]
[1645348459746,0.1902,2627.4,2627.0,0.95279849]
[1645348460598,0.1902,2627.9,2627.0,1.25279849]
[1645348460793,1.91757353,2629.0,2627.0,1.25279849]
[1645348460794,0.1902,2628.1,2627.1,16.67]
[1645348460993,0.1902,2628.9,2627.4,11.67]
[1645348461196,7.2887,2629.8,2627.8,11.67]
[1645348461197,0.1902,2629.2,2627.8,11.67]
[1645348461394,4.53660629,2630.3,2628.0,11.67]
[1645348461395,0.1902,2629.7,2628.0,11.67]
[1645348461614,5.02400033,2630.3,2629.5,1.01528776]
[1645348461615,0.1902,2630.2,2629.5,1.01528776]
[1645348461797,0.19,2630.3,2629.5,1.01528776]
[1645348461992,0.19,2630.6,2629.5,1.01528776]
[1645348462197,0.19,2630.8,2629.5,1.01528776]
[1645348462696,0.19,2630.8,2630.0,1.09559364]
[1645348463097,0.19,2631.5,2630.0,1.04559364]
[1645348463593,0.19,2631.5,2630.6,0.96431402]
[1645348464439,1.14146,2631.5,2630.6,0.96431402]
[1645348465941,0.9516,2631.1,2630.6,0.96431402]
[1645348466849,0.9516,2631.1,2629.6,6.5613]
[1645348467043,0.95176,2630.7,2629.1,3.5]
[1645348467245,0.95176,2630.7,2629.2,0.19]
[1645348467442,0.95176,2630.7,2629.1,5.29]
[1645348467891,0.95176,2630.7,2630.0,1.15331605]
[1645348469593,0.95176,2630.7,2630.4,1.07680517]
[1645348470091,0.95176,2630.7,2629.1,5.29]
[1645348470295,0.19,2630.9,2629.1,1.79]
[1645348470492,0.19,2630.9,2629.2,15.17]
[1645348471292,0.19,2630.9,2629.3,12.67]
[1645348471542,0.19,2631.3,2629.4,3.8]
[1645348471944,0.19,2631.3,2629.5,1.0]
[1645348472141,0.19,2631.3,2629.7,5.0]
[1645348472346,0.19,2631.3,2631.2,1.16746587]
[1645348472542,0.95141,2631.6,2631.2,1.16746587]
[1645348472745,2.85459,2632.1,2631.2,1.16746587]
[1645348473047,0.5,2632.2,2631.3,3.5]
[1645348473444,0.454,2632.9,2631.2,1.45783823]
[1645348473644,0.95105,2632.7,2632.0,0.84035167]
[1645348474244,0.95105,2632.7,2630.9,3.6088]
[1645348474445,3.954,2632.9,2630.9,0.6]
[1645348474446,3.5,2632.6,2630.9,0.6]
[1645348474742,3.5,2632.8,2630.7,12.4599]
[1645348474942,3.5,2632.8,2630.8,1.0]
[1645348475391,3.5,2632.8,2631.8,1.19361999]
[1645348475593,1.3,2632.7,2631.8,1.19361999]
[1645348475791,0.3,2632.5,2631.8,1.19361999]
[1645348476093,0.95119,2632.3,2631.8,1.19361999]
[1645348478193,0.95119,2632.3,2631.8,0.92080704]
[1645348478593,0.95119,2632.3,2631.9,0.00083946]
[1645348479440,0.95119,2632.3,2630.9,0.3]
[1645348479643,4.45119,2632.3,2631.6,1.18687935]
[1645348479841,1.0,2632.2,2632.0,0.00083944]
[1645348480241,1.25119,2632.3,2632.0,0.00083944]
[1645348480643,1.25119,2632.3,2631.6,1.18687935]
[1645348480841,1.55119,2632.3,2630.6,1.1899]
[1645348481043,0.454,2632.2,2632.0,0.00083943]
[1645348481244,3.9899,2632.1,2632.0,0.00083943]
[1645348481445,4.2899,2632.1,2632.0,0.00083943]
[1645348481842,4.2899,2632.1,2630.6,0.1899]
[1645348481843,5.77367261,2632.1,2630.8,0.97250575]
[1645348482054,0.95136,2631.8,2630.8,0.97250575]
[1645348482246,3.5,2631.7,2630.8,0.97250575]
[1645348482443,0.95136,2631.8,2630.8,0.97250575]
[1645348482655,1.0,2631.6,2630.8,0.97250575]
[1645348482895,1.95136,2631.8,2630.8,0.97250575]
[1645348483093,3.5,2631.7,2630.8,0.97250575]
[1645348483297,1.0,2631.6,2631.1,0.00083973]
[1645348483493,1.3,2631.6,2631.1,0.00083973]
[1645348483696,1.3,2631.6,2630.8,0.54737771]
[1645348484100,0.454,2631.5,2630.8,0.54737771]
[1645348484296,0.754,2631.5,2630.8,0.54737771]
[1645348484696,1.054,2631.5,2630.8,0.54737771]
[1645348485697,1.054,2631.5,2631.0,0.00083765]
[1645348485698,1.14439,2631.5,2631.0,0.00083765]
[1645348486538,4.64439,2631.5,2631.0,0.00083765]
[1645348486845,1.0,2631.4,2630.8,0.54737771]